bitfinex/quotes_BTCUSD_20220111
["timestamp","ask_amount","ask_price","bid_price","bid_amount"]
[1641944577826,0.02489832,42791.0,42790.0,0.67833366]
[1641944578228,0.00589832,42791.0,42790.0,0.67833366]
[1641944579072,0.02389832,42791.0,42790.0,0.68633366]
[1641944580276,0.00589832,42791.0,42790.0,0.67833366]
[1641944580676,0.00589832,42791.0,42790.0,0.41592456]
[1641944580976,0.01189832,42791.0,42790.0,0.43092456]
[1641944582181,0.00589832,42791.0,42790.0,0.41592456]
[1641944583025,0.00589832,42791.0,42790.0,0.43992456]
[1641944583026,0.00889832,42791.0,42790.0,0.43992456]
[1641944583427,0.00889832,42791.0,42790.0,0.68112776]
[1641944583625,0.00889832,42791.0,42790.0,0.68027724]
[1641944583825,0.00889832,42791.0,42790.0,0.43992456]
[1641944584225,0.00589832,42791.0,42790.0,0.09454687]
[1641944585126,0.01189832,42791.0,42790.0,0.11354687]
[1641944586326,0.00589832,42791.0,42790.0,0.09454687]
[1641944586592,0.00589832,42791.0,42790.0,0.33649193]
[1641944586992,0.00589832,42791.0,42790.0,0.73310593]
[1641944586993,0.00889832,42791.0,42790.0,0.73310593]
[1641944587192,0.00889832,42791.0,42790.0,0.73436259]
[1641944588192,0.00589832,42791.0,42790.0,0.71236259]
[1641944588393,0.00589832,42791.0,42790.0,1.15490845]
[1641944588994,0.01130506,42791.0,42790.0,1.16990845]
[1641944590197,0.01130506,42791.0,42790.0,1.76772873]
[1641944590427,0.00430506,42791.0,42790.0,1.75272873]
[1641944591026,0.01030506,42791.0,42790.0,1.17190845]
[1641944591827,0.01030506,42791.0,42790.0,1.22190845]
[1641944592028,0.01030506,42791.0,42790.0,1.81972873]
[1641944592430,0.01030506,42791.0,42790.0,1.80272873]
[1641944592431,0.00430506,42791.0,42790.0,1.80272873]
[1641944593028,0.00430506,42791.0,42790.0,1.82772873]
[1641944593629,0.00430506,42791.0,42790.0,1.22990845]
[1641944594082,0.116848,42807.0,42802.0,0.04592912]
[1641944594286,0.374614,42806.0,42802.0,0.04592912]
[1641944594484,0.43056447,42806.0,42802.0,0.04592912]
[1641944594683,0.38180294,42803.0,42802.0,0.04592912]
[1641944594888,0.49867194,42803.0,42802.0,0.04592912]
[1641944595082,0.55462241,42803.0,42802.0,0.04592912]
[1641944596184,0.562535,42803.0,42802.0,0.04592912]
[1641944596584,0.50462241,42803.0,42802.0,0.04592912]
[1641944596986,0.56462241,42803.0,42802.0,0.04592912]
[1641944597186,0.57140803,42803.0,42802.0,0.04592912]
[1641944598227,0.56140803,42803.0,42802.0,0.04592912]
[1641944598729,0.43775341,42803.0,42802.0,0.04592912]
[1641944598930,0.38775341,42803.0,42802.0,0.04592912]
[1641944599130,0.39875341,42803.0,42802.0,0.04592912]
[1641944600230,0.38775341,42803.0,42802.0,0.04592912]
[1641944600932,0.3886271,42803.0,42802.0,0.04592912]
[1641944601132,0.3986271,42803.0,42802.0,0.04592912]
[1641944602177,0.3886271,42803.0,42802.0,0.04592912]
[1641944602980,0.4496271,42803.0,42802.0,0.04592912]
[1641944603181,0.45597661,42803.0,42802.0,0.04592912]
[1641944604280,0.44497661,42803.0,42802.0,0.04592912]
[1641944605081,0.45597661,42803.0,42802.0,0.27592912]
[1641944605529,0.4496271,42803.0,42802.0,0.27592912]
[1641944605728,0.3996271,42803.0,42802.0,0.27592912]
[1641944605925,0.0250131,42803.0,42802.0,0.27592912]
[1641944606126,0.0250131,42803.0,42802.0,0.04592912]
[1641944606327,0.0140131,42803.0,42802.0,0.04592912]
[1641944607129,0.0240131,42803.0,42802.0,0.04592912]
[1641944608326,0.0140131,42803.0,42802.0,0.04592912]
[1641944609174,0.0250131,42803.0,42802.0,0.04592912]
[1641944609374,0.3996271,42803.0,42802.0,0.04592912]
[1641944610275,0.3886271,42803.0,42802.0,0.04592912]
[1641944611077,0.4006271,42803.0,42802.0,0.04592912]
[1641944611883,0.42698306,42803.0,42802.0,0.04592912]
[1641944612278,0.41498306,42803.0,42802.0,0.04592912]
[1641944612478,0.04036906,42803.0,42802.0,0.04592912]
[1641944613129,0.05236906,42803.0,42802.0,0.04592912]
[1641944614228,0.04036906,42803.0,42802.0,0.04592912]
[1641944615130,0.05236906,42803.0,42802.0,0.04592912]
[1641944616331,0.04036906,42803.0,42802.0,0.04592912]
[1641944616983,0.03441859,42803.0,42802.0,0.04592912]
[1641944617181,0.07241859,42803.0,42802.0,0.04592912]
[1641944617381,0.07241859,42803.0,42802.0,0.66320603]
[1641944618383,0.03441859,42803.0,42802.0,0.91590759]
[1641944619182,0.07441859,42803.0,42802.0,0.91990759]
[1641944619986,0.07441859,42803.0,42802.0,1.29452159]
[1641944620187,0.00015,42810.0,42802.0,1.49452159]
[1641944620436,0.00015,42810.0,42808.0,0.00129407]
[1641944620633,0.00015,42810.0,42808.0,0.06673407]
[1641944620836,0.00015,42810.0,42809.0,0.374614]
[1641944621137,0.00515,42810.0,42809.0,0.66301147]
[1641944621335,0.00515,42810.0,42809.0,0.66424506]
[1641944621537,0.00515,42810.0,42809.0,1.14363445]
[1641944622536,0.00015,42810.0,42809.0,1.14363445]
[1641944622734,0.00015,42810.0,42809.0,0.28963106]
[1641944622933,0.00015,42810.0,42809.0,0.54084839]
[1641944623134,0.00015,42810.0,42809.0,0.55784839]
[1641944623936,0.00015,42810.0,42809.0,0.93246239]
[1641944624382,0.00015,42810.0,42809.0,0.91546239]
[1641944625185,0.00015,42810.0,42809.0,0.94346239]
[1641944625586,0.00119493,42810.0,42809.0,0.94383939]
[1641944625785,0.00119493,42810.0,42809.0,1.28386007]
[1641944626588,0.00119493,42810.0,42809.0,1.25586007]
[1641944627188,0.00119493,42810.0,42809.0,1.28486007]
[1641944627836,0.00119493,42810.0,42809.0,1.51486007]
[1641944628432,0.00119493,42810.0,42809.0,1.48586007]
[1641944629135,0.00119493,42810.0,42809.0,1.51086007]
[1641944630332,0.00119493,42810.0,42809.0,1.48586007]
[1641944630733,0.00119493,42810.0,42809.0,1.53586007]
[1641944631133,0.00119493,42810.0,42809.0,1.56186007]
[1641944631779,0.00119493,42810.0,42809.0,1.31064274]
[1641944632178,0.00119493,42810.0,42809.0,1.26064274]
[1641944632379,0.00119493,42810.0,42809.0,1.23464274]
[1641944633078,0.00119493,42810.0,42809.0,1.25464274]
[1641944633479,0.00119493,42810.0,42809.0,1.30464274]
[1641944633680,0.058406,42816.0,42810.0,0.574614]
[1641944633880,0.058406,42816.0,42812.0,0.058404]
[1641944634082,0.00718533,42818.0,42812.0,0.058404]
[1641944634286,0.00718533,42818.0,42812.0,0.34831249]
[1641944635082,0.00718533,42818.0,42816.0,0.4723014]
[1641944635331,0.00718533,42818.0,42816.0,0.5307024]
[1641944635728,0.0008722,42817.0,42816.0,0.5307024]
[1641944636127,0.0008722,42817.0,42815.0,0.116802]
[1641944637827,0.0592772,42817.0,42815.0,0.116802]
[1641944639881,0.0008722,42817.0,42815.0,0.116802]
[1641944640681,0.00718533,42818.0,42816.0,0.00068213]
[1641944641080,0.058407,42817.0,42816.0,0.00068213]
[1641944643530,0.00718533,42818.0,42816.0,0.00068213]
[1641944643934,0.00718533,42818.0,42816.0,0.05908113]
[1641944644532,0.00718533,42818.0,42817.0,0.23811195]
[1641944645134,0.00718533,42818.0,42817.0,0.26611195]
[1641944645534,0.00718533,42818.0,42817.0,0.64072595]
[1641944645734,0.00718533,42818.0,42817.0,0.64103285]
[1641944645936,0.00718533,42818.0,42817.0,0.69103285]
[1641944646577,0.00718533,42818.0,42817.0,0.66303285]
[1641944647177,0.00718533,42818.0,42817.0,0.68103285]
[1641944648378,0.00718533,42818.0,42817.0,0.66303285]
[1641944648579,0.00718533,42818.0,42817.0,0.61303285]
[1641944649180,0.00718533,42818.0,42817.0,0.62903285]
[1641944650429,0.00718533,42818.0,42817.0,0.61303285]
[1641944650633,0.00805774,42818.0,42817.0,0.00037417]
[1641944651229,0.00805774,42818.0,42817.0,0.02237417]
[1641944652932,0.00805774,42818.0,42817.0,0.00037417]
[1641944653332,0.00805774,42818.0,42817.0,0.02237417]
[1641944653632,0.00805774,42818.0,42817.0,0.63347618]
[1641944654280,0.28738668,42828.0,42817.0,0.63347618]
[1641944654480,0.33738668,42828.0,42822.0,0.058392]
[1641944654680,0.05,42828.0,42822.0,0.47704282]
[1641944654882,0.116783,42831.0,42822.0,0.47704282]
[1641944654883,0.058392,42827.0,42822.0,0.47704282]
[1641944655285,0.058392,42827.0,42822.0,0.008]
[1641944655487,0.058392,42827.0,42822.0,0.26163352]
[1641944655682,0.00032151,42828.0,42823.0,0.116778]
[1641944656483,0.00032151,42828.0,42823.0,0.45306941]
[1641944656683,0.00050831,42828.0,42823.0,0.45385298]
[1641944657384,0.00050831,42828.0,42824.0,0.31041706]
[1641944657582,0.00050831,42828.0,42825.0,0.058389]
[1641944659128,0.08888025,42829.0,42825.0,0.058389]
[1641944659328,0.08452163,42829.0,42825.0,0.004]
[1641944659529,0.374614,42828.0,42825.0,0.004]
[1641944659731,0.058397,42827.0,42825.0,0.004]
[1641944660532,0.058397,42827.0,42824.0,0.00078613]
[1641944661577,0.058397,42827.0,42823.0,0.05909398]
[1641944661979,0.00170083,42828.0,42823.0,0.05909398]
[1641944662179,0.00170083,42828.0,42823.0,0.2987078]
[1641944662379,0.00170083,42828.0,42823.0,0.30057935]
[1641944662578,0.00170083,42828.0,42823.0,0.35896235]
[1641944663182,0.00170083,42828.0,42823.0,0.31957935]
[1641944663781,0.00170083,42828.0,42823.0,0.36957935]
[1641944663979,0.00167839,42828.0,42823.0,0.36957135]
[1641944664180,0.00167839,42828.0,42823.0,0.31957135]
[1641944664379,0.00167839,42828.0,42823.0,0.30057135]
[1641944664781,0.00167839,42828.0,42823.0,0.05908598]
[1641944665180,0.00167072,42828.0,42823.0,0.0790956]
[1641944665631,0.00112055,42827.0,42826.0,0.00037135]
[1641944667232,0.00112055,42827.0,42826.0,0.00637135]
[1641944667434,0.00112055,42827.0,42826.0,0.23637135]
[1641944668435,0.00112055,42827.0,42826.0,0.23037135]
[1641944669379,0.00112055,42827.0,42826.0,0.23337135]
[1641944670778,0.08569218,42829.0,42826.0,0.23333413]
[1641944671279,0.08568924,42829.0,42826.0,0.23033413]
[1641944672279,0.08513285,42829.0,42826.0,0.23033413]
[1641944672936,0.08513285,42829.0,42826.0,0.28033413]
[1641944673135,0.08513285,42829.0,42826.0,0.23033413]
[1641944675236,0.08513285,42829.0,42826.0,0.23533413]
[1641944675635,0.0840123,42829.0,42828.0,0.00038434]
[1641944679087,0.0256243,42829.0,42828.0,0.00038434]
[1641944680728,0.02674546,42829.0,42828.0,0.00033354]
[1641944683928,0.02674546,42829.0,42826.0,0.21877888]
[1641944685387,0.02674546,42829.0,42826.0,0.22677888]
[1641944685592,0.02674546,42829.0,42827.0,0.00030035]
[1641944685787,0.00130033,42828.0,42827.0,0.00030035]
[1641944685988,0.00848427,42828.0,42827.0,0.00030035]
[1641944688531,0.00818427,42828.0,42827.0,0.00030035]
[1641944688932,0.00788427,42828.0,42827.0,0.00030035]
[1641944689329,0.00788427,42828.0,42827.0,0.00430035]
[1641944690730,0.00833427,42828.0,42827.0,0.00056241]
[1641944694790,0.00833427,42828.0,42826.0,0.21877888]
[1641944694791,1.01264827,42828.0,42826.0,0.21877888]
[1641944694989,1.407714,42827.0,42826.0,0.21877888]
[1641944695190,1.45352021,42827.0,42826.0,0.21877888]
[1641944695832,0.5,42826.0,42824.0,0.00070173]
[1641944696131,0.85898455,42825.0,42824.0,0.00070173]
[1641944696331,0.85898455,42825.0,42824.0,0.00070172]
[1641944696534,1.44208455,42825.0,42824.0,0.00070172]
[1641944697430,1.45308455,42825.0,42824.0,0.00070172]
[1641944697634,1.45308455,42825.0,42822.0,0.20070173]
[1641944697831,1.39467455,42825.0,42822.0,0.20070173]
[1641944698032,1.45308155,42825.0,42822.0,0.20070173]
[1641944698235,0.05840659,42824.0,42822.0,0.20070173]
[1641944698433,0.421165,42823.0,42822.0,0.20070173]
[1641944698835,0.471165,42823.0,42822.0,0.2]
[1641944699088,0.587977,42823.0,42822.0,0.2]
[1641944699285,0.587977,42823.0,42821.0,0.00070174]
[1641944699485,0.598977,42823.0,42821.0,0.00070174]
[1641944699889,0.058405,42822.0,42820.0,0.20070175]
[1641944700088,0.0466,42821.0,42820.0,0.20070175]
[1641944701088,0.0466,42821.0,42820.0,0.2]
[1641944701487,0.0596,42821.0,42820.0,0.2]
[1641944701692,0.0596,42821.0,42820.0,0.44370759]
[1641944701888,0.013,42821.0,42820.0,0.81827259]
[1641944702089,0.013,42821.0,42820.0,0.81947347]
[1641944702940,0.013,42821.0,42820.0,0.86947347]
[1641944703139,0.013,42821.0,42820.0,0.76947347]
[1641944703342,0.0008596,42823.0,42820.0,0.77947347]
[1641944703541,0.0008596,42823.0,42821.0,0.432944]
[1641944703741,0.0008596,42823.0,42822.0,0.48009901]
[1641944703941,0.0008596,42823.0,42822.0,0.85466401]
[1641944704142,0.0008596,42823.0,42822.0,0.85593793]
[1641944704544,0.0008596,42823.0,42822.0,0.95593793]
[1641944705445,0.0008596,42823.0,42822.0,0.97593793]
[1641944705643,0.00860073,42828.0,42822.0,0.97593793]
[1641944705844,0.00915792,42828.0,42827.0,0.44442644]
[1641944706047,0.00860073,42828.0,42827.0,1.15887673]
[1641944706246,0.00860073,42828.0,42827.0,1.45411672]
[1641944706687,0.00860073,42828.0,42827.0,1.70963833]
[1641944707087,0.00804354,42828.0,42827.0,1.70963833]
[1641944707587,0.00804354,42828.0,42827.0,1.71863833]
[1641944708188,0.00804354,42828.0,42827.0,1.42339834]
[1641944708587,0.00804354,42828.0,42827.0,1.65339834]
[1641944708791,0.00804354,42828.0,42827.0,1.64439834]
[1641944708991,0.16840973,42837.0,42828.0,0.424565]
[1641944709191,0.058378,42834.0,42831.0,0.058378]
[1641944709393,0.09454345,42834.0,42831.0,0.058378]
[1641944709589,0.0723309,42834.0,42831.0,0.058378]
[1641944710649,0.00107756,42833.0,42831.0,0.058378]
[1641944711546,0.00107756,42833.0,42831.0,0.069378]
[1641944712648,0.00107756,42833.0,42831.0,0.058378]
[1641944713448,0.00107756,42833.0,42831.0,0.069378]
[1641944714684,0.00107756,42833.0,42831.0,0.058378]
[1641944714884,0.1307129,42832.0,42830.0,0.116755]
[1641944715384,0.1307129,42832.0,42830.0,0.127755]
[1641944715683,0.13179016,42832.0,42830.0,0.127755]
[1641944716086,0.07340816,42832.0,42830.0,0.127755]
[1641944716687,0.07340816,42832.0,42830.0,0.116755]
[1641944717486,0.07340816,42832.0,42830.0,0.127755]
[1641944718633,0.07340816,42832.0,42830.0,0.116755]
[1641944719435,0.07340816,42832.0,42830.0,0.128755]
[1641944719836,0.00107726,42832.0,42830.0,0.128755]
[1641944720137,0.0723309,42831.0,42830.0,0.128755]
[1641944720741,0.07340785,42831.0,42830.0,0.49132]
[1641944721585,0.07340785,42831.0,42830.0,0.50032]
[1641944721786,0.07340785,42831.0,42830.0,0.50157804]
[1641944722685,0.07340785,42831.0,42830.0,0.49257804]
[1641944723487,0.07340785,42831.0,42830.0,0.51657804]
[1641944724689,0.07340785,42831.0,42830.0,0.49257804]
[1641944725539,0.07340785,42831.0,42830.0,0.51357804]
[1641944726745,0.07340785,42831.0,42830.0,0.49257804]
[1641944727148,0.07340785,42831.0,42830.0,0.11801304]
[1641944727346,0.07340785,42831.0,42829.0,0.058377]
[1641944727548,0.0372424,42831.0,42830.0,0.025]
[1641944727945,0.07340785,42831.0,42830.0,0.025]
[1641944728547,0.13179285,42831.0,42830.0,0.025]
[1641944728747,0.18221285,42831.0,42829.0,0.058377]
[1641944729187,0.1460474,42831.0,42829.0,0.058377]
[1641944729385,0.03616545,42830.0,42829.0,0.058377]
[1641944729685,0.03616545,42830.0,42829.0,0.084377]
[1641944730687,0.03734227,42830.0,42829.0,0.058377]
[1641944731488,0.03734227,42830.0,42829.0,0.084377]
[1641944731886,0.04116227,42830.0,42829.0,0.084377]
[1641944732087,0.04116227,42830.0,42829.0,0.458942]
[1641944732692,0.04116227,42830.0,42829.0,0.43423355]
[1641944732935,0.04116227,42830.0,42829.0,0.8482263]
[1641944733133,0.04116227,42830.0,42829.0,1.21822995]
[1641944733335,0.07732772,42830.0,42829.0,1.21822995]
[1641944733533,0.07732772,42830.0,42829.0,1.23222995]
[1641944734733,0.07732772,42830.0,42829.0,1.21822995]
[1641944735634,0.07732772,42830.0,42829.0,1.23922995]
[1641944736683,0.07732772,42830.0,42829.0,1.21822995]
[1641944737486,0.07732772,42830.0,42829.0,1.24322995]
[1641944738085,0.07732772,42830.0,42829.0,1.29322995]
[1641944738385,0.07732772,42830.0,42829.0,1.39322995]
[1641944738686,0.07732772,42830.0,42829.0,1.36822995]
[1641944739487,0.07732772,42830.0,42829.0,1.29222995]
[1641944739687,0.07732772,42830.0,42829.0,0.8282372]
[1641944740344,0.07732772,42830.0,42829.0,0.456942]
[1641944740738,0.07732772,42830.0,42829.0,0.482942]
[1641944741535,0.07732772,42830.0,42829.0,0.512942]
[1641944742739,0.07732772,42830.0,42829.0,0.432942]
[1641944743539,0.07732772,42830.0,42829.0,0.467942]
[1641944744783,0.07732772,42830.0,42829.0,0.432942]
[1641944745484,0.07732772,42830.0,42829.0,0.451942]
[1641944746686,0.07732772,42830.0,42829.0,0.432942]
[1641944747586,0.07732772,42830.0,42829.0,0.455942]
[1641944749438,0.07732772,42830.0,42829.0,0.463942]
[1641944750344,0.00124268,42835.0,42833.0,0.09723527]
[1641944750539,0.00718229,42837.0,42833.0,0.09723527]
[1641944750745,0.058376,42835.0,42833.0,0.09723527]
[1641944751589,0.06555529,42837.0,42833.0,0.10923527]
[1641944752794,0.06610772,42837.0,42833.0,0.09723527]
[1641944753591,0.06610772,42837.0,42833.0,0.11123527]
[1641944754792,0.06610772,42837.0,42833.0,0.09723527]
[1641944755194,0.06610772,42837.0,42834.0,0.05837133]
[1641944755438,0.00773472,42837.0,42834.0,0.05837133]
[1641944755638,0.00088445,42836.0,42834.0,0.05837133]
[1641944756838,0.05925845,42836.0,42833.0,0.09723527]
[1641944757641,0.05925845,42836.0,42833.0,0.12123527]
[1641944757843,0.28947766,42835.0,42833.0,0.024]
[1641944758045,0.53716713,42834.0,42833.0,0.024]
[1641944758242,0.95833213,42834.0,42833.0,0.024]
[1641944758846,0.95833213,42834.0,42827.0,0.23070204]
[1641944759090,0.05839,42831.0,42827.0,0.23070204]
[1641944759290,0.3034232,42830.0,42827.0,0.23070204]
[1641944759590,0.3034232,42830.0,42827.0,0.26470204]
[1641944759789,0.0466,42830.0,42827.0,0.26470204]
[1641944759992,0.0466,42830.0,42827.0,0.26470255]
[1641944760391,0.058392,42829.0,42827.0,0.26470255]
[1641944760591,0.0466,42828.0,42827.0,0.26470255]
[1641944760791,0.0466,42828.0,42827.0,0.23070255]
[1641944761193,0.0466,42828.0,42827.0,0.23]
[1641944761593,0.0536,42828.0,42827.0,0.261]
[1641944762939,0.0466,42828.0,42827.0,0.23]
[1641944763139,0.0466,42828.0,42827.0,0.604565]
[1641944763339,0.00088261,42830.0,42827.0,0.604565]
[1641944763536,0.00088261,42830.0,42828.0,0.374565]
[1641944764238,0.00088261,42830.0,42828.0,0.43294184]
[1641944765638,0.00143199,42834.0,42828.0,0.44894184]
[1641944765841,0.00143199,42834.0,42828.0,0.07437684]
[1641944766038,0.00143199,42834.0,42831.0,0.05837891]
[1641944766239,0.05838,42832.0,42831.0,0.05837891]
[1641944767487,0.07638,42832.0,42831.0,0.06637891]
[1641944767688,0.04551108,42837.0,42833.0,0.05837919]
[1641944768487,0.04551108,42837.0,42831.0,0.008]
[1641944768889,0.04551108,42837.0,42831.0,0.0583817]
[1641944769588,0.05051108,42837.0,42831.0,0.0683817]
[1641944770438,0.29134804,42837.0,42831.0,0.0683817]
[1641944770640,0.00126022,42835.0,42831.0,0.01]
[1641944770842,0.058394,42833.0,42827.0,0.23]
[1641944771038,0.0466,42832.0,42827.0,0.23]
[1641944771338,0.13609954,42831.0,42830.0,0.00084289]
[1641944771539,0.43269954,42831.0,42830.0,0.00084289]
[1641944771739,0.55726454,42831.0,42830.0,0.00084289]
[1641944772139,0.67404754,42831.0,42830.0,0.00084289]
[1641944772338,0.537948,42831.0,42828.0,0.00084289]
[1641944772539,0.163383,42831.0,42828.0,0.00084289]
[1641944772937,0.25219751,42830.0,42828.0,0.00084289]
[1641944773238,0.0466,42829.0,42828.0,0.00084289]
[1641944773437,0.058393,42828.0,42827.0,0.2308429]
[1641944773637,0.35323341,42828.0,42827.0,0.2308429]
[1641944774088,0.104993,42828.0,42827.0,0.2308429]
[1641944774488,0.104993,42828.0,42827.0,0.23]
[1641944775488,0.104993,42828.0,42827.0,0.51400287]
[1641944775689,0.10965442,42828.0,42827.0,0.55300287]
[1641944776891,0.04726142,42828.0,42827.0,0.51400287]
[1641944777487,0.04726142,42828.0,42827.0,0.54600287]
[1641944777688,0.05426142,42828.0,42827.0,0.54600287]
[1641944778744,0.04726142,42828.0,42827.0,0.51400287]
[1641944779547,0.05226142,42828.0,42827.0,0.54700287]
[1641944780546,0.05226142,42828.0,42827.0,0.263]
[1641944780746,0.04726142,42828.0,42827.0,0.23]
[1641944781585,0.05626142,42828.0,42827.0,0.26]
[1641944782788,0.04726142,42828.0,42827.0,0.23]
[1641944782990,0.00066142,42828.0,42827.0,0.23]
[1641944783590,0.00266142,42828.0,42827.0,0.47873144]
[1641944783991,0.00266142,42828.0,42827.0,0.4821212]
[1641944784193,0.00266142,42828.0,42827.0,0.48202219]
[1641944784390,0.00266142,42828.0,42827.0,0.25]
[1641944784793,0.00066142,42828.0,42827.0,0.23]
[1641944785643,0.001,42828.0,42827.0,0.256]
[1641944786843,0.058384,42829.0,42827.0,0.23]
[1641944787243,0.058384,42829.0,42827.0,0.34677108]
[1641944787449,0.06556696,42829.0,42827.0,0.34677108]
[1641944787646,0.07556696,42829.0,42827.0,0.35677108]
[1641944788848,0.06556696,42829.0,42827.0,0.34677108]
[1641944789689,0.07456696,42829.0,42827.0,0.35877108]
[1641944790590,0.00066142,42828.0,42827.0,0.35877108]
[1641944790793,0.00066142,42828.0,42827.0,0.34677108]
[1641944791691,0.00766142,42828.0,42827.0,0.35577108]
[1641944791895,0.00766142,42828.0,42827.0,0.239]
[1641944792095,0.00766142,42828.0,42825.0,0.00070294]
[1641944792096,0.65,42827.0,42825.0,0.00070294]
[1641944792293,0.871165,42826.0,42825.0,0.00070294]
[1641944792493,1.454265,42826.0,42825.0,0.00140564]
[1641944792698,0.65,42825.0,42817.0,0.00015]
[1641944792947,0.116819,42821.0,42817.0,0.00015]
[1641944793144,0.596412,42820.0,42808.0,0.06785868]
[1641944793346,0.596412,42820.0,42809.0,0.00015]
[1641944793347,0.221847,42820.0,42809.0,0.00015]
[1641944793543,0.228847,42820.0,42809.0,0.0003]
[1641944793744,0.228847,42820.0,42809.0,0.00015]
[1641944793944,0.0536,42820.0,42810.0,0.30329477]
[1641944794146,0.11201,42820.0,42810.0,0.30329477]
[1641944794344,0.11201,42820.0,42811.0,0.00015]
[1641944794548,0.058417,42814.0,42811.0,0.00015]
[1641944794847,0.0536,42820.0,42808.0,0.0003]
[1641944794848,0.33511084,42813.0,42808.0,0.0003]
[1641944795047,0.39352984,42813.0,42808.0,0.0003]
[1641944795247,0.39352984,42813.0,42804.0,0.0003]
[1641944795445,0.03797526,42809.0,42804.0,0.29988323]
[1641944795646,0.29573052,42808.0,42804.0,0.29958323]
[1641944795845,0.30163525,42808.0,42805.0,0.0003]
[1641944796247,0.0466,42808.0,42805.0,0.0003]
[1641944796448,0.058419,42807.0,42806.0,0.05841803]
[1641944796694,0.34850944,42807.0,42806.0,0.05841803]
[1641944796893,0.105019,42807.0,42806.0,0.05871803]
[1641944797694,0.108019,42807.0,42806.0,0.05871803]
[1641944798794,0.105019,42807.0,42806.0,0.05871803]
[1641944798994,0.0466,42807.0,42806.0,0.05871803]
[1641944799193,0.0416,42807.0,42806.0,0.05871803]
[1641944799595,0.0456,42807.0,42806.0,0.28871803]
[1641944800742,0.04243632,42807.0,42806.0,0.28922075]
[1641944801641,0.04643632,42807.0,42806.0,0.28922075]
[1641944802840,0.04243632,42807.0,42806.0,0.28922075]
[1641944803641,0.04643632,42807.0,42806.0,0.28922075]
[1641944804797,0.04243632,42807.0,42806.0,0.28922075]
[1641944805600,0.04643632,42807.0,42806.0,0.28922075]
[1641944807001,0.04243632,42807.0,42806.0,0.28922075]
[1641944807702,0.04643632,42807.0,42806.0,0.28922075]
[1641944808548,0.04643632,42807.0,42806.0,0.23080272]
[1641944809047,0.04243632,42807.0,42806.0,0.23080272]
[1641944809749,0.04843632,42807.0,42806.0,0.23080272]
[1641944810955,0.04243632,42807.0,42806.0,0.23080272]
[1641944811600,0.30237611,42807.0,42806.0,0.23080272]
[1641944813004,0.29337611,42807.0,42806.0,0.23080272]
[1641944813507,0.04243632,42807.0,42806.0,0.23080272]
[1641944813704,0.05143632,42807.0,42806.0,0.23080272]
[1641944813904,0.00983632,42807.0,42806.0,0.23080272]
[1641944815540,0.00083632,42807.0,42806.0,0.23080272]
[1641944815740,0.00783632,42807.0,42806.0,0.23080272]
[1641944816842,0.00083632,42807.0,42806.0,0.23080272]
[1641944817643,0.00883632,42807.0,42806.0,0.23080272]
[1641944818947,0.00083632,42807.0,42806.0,0.23080272]
[1641944819595,0.00783632,42807.0,42806.0,0.23080272]
[1641944820995,0.00083632,42807.0,42806.0,0.23080272]
[1641944821599,0.00983632,42807.0,42806.0,0.23080272]
[1641944822596,0.00983632,42807.0,42806.0,0.28921815]
[1641944822841,0.00083632,42807.0,42806.0,0.28921815]
[1641944823644,0.00983632,42807.0,42806.0,0.28921815]
[1641944824845,0.00083632,42807.0,42806.0,0.28921815]
[1641944825246,0.05792626,42808.0,42806.0,0.28921815]
[1641944825547,0.00083632,42807.0,42806.0,0.28891815]
[1641944825746,0.00983632,42807.0,42806.0,0.28891815]
[1641944826147,0.00983632,42807.0,42806.0,0.28921815]
[1641944826799,0.00983632,42807.0,42806.0,0.23080272]
[1641944826995,0.00083632,42807.0,42806.0,0.23080272]
[1641944827797,0.00983632,42807.0,42806.0,0.23080272]
[1641944828997,0.04743632,42807.0,42806.0,0.23080272]
[1641944829197,0.04870637,42807.0,42806.0,0.23080272]
[1641944829400,0.3,42806.0,42804.0,0.00070259]
[1641944829596,0.479601,42805.0,42804.0,0.00070259]
[1641944829796,0.4,42804.0,42801.0,0.0999]
[1641944829996,0.374565,42802.0,42800.0,0.00015]
[1641944830197,0.221918,42803.0,42800.0,0.00015]
[1641944830198,0.674141,42801.0,42800.0,0.00015]
[1641944830448,0.84430597,42801.0,42795.0,0.00391099]
[1641944830646,0.144565,42800.0,42795.0,0.00391099]
[1641944830849,0.191165,42800.0,42795.0,0.00391099]
[1641944831046,0.191165,42800.0,42795.0,0.0011]
[1641944831448,0.4,42799.0,42795.0,0.0011]
[1641944831647,0.479609,42798.0,42795.0,0.0011]
[1641944832450,0.479609,42798.0,42795.0,0.00180444]
[1641944833148,0.058441,42797.0,42795.0,0.00180444]
[1641944833347,0.0466,42796.0,42795.0,0.00180444]
[1641944833548,0.0466,42796.0,42795.0,0.0011]
[1641944835598,0.0471827,42796.0,42795.0,0.0016052]
[1641944835796,0.0571827,42796.0,42795.0,0.0016052]
[1641944836897,0.0471827,42796.0,42795.0,0.0016052]
[1641944837850,0.0571827,42796.0,42795.0,0.0016052]
[1641944838247,0.4318647,42796.0,42795.0,0.0016052]
[1641944838646,0.365684,42795.0,42793.0,0.00290198]
[1641944838847,0.2466,42794.0,42793.0,0.00290198]
[1641944839446,0.0466,42794.0,42793.0,0.0022]
[1641944839648,0.6387,42794.0,42793.0,0.0022]
[1641944840647,0.6387,42794.0,42793.0,0.0027206]
[1641944840846,0.63936649,42794.0,42793.0,0.0027206]
[1641944841046,0.63936649,42794.0,42793.0,0.2327206]
[1641944841446,0.63036649,42794.0,42793.0,0.2327206]
[1641944841711,0.63936649,42794.0,42793.0,0.2327206]
[1641944843011,0.63036649,42794.0,42793.0,0.2327206]
[1641944843811,0.63836649,42794.0,42793.0,0.2327206]
[1641944844910,0.63036649,42794.0,42793.0,0.2327206]
[1641944845110,0.63036649,42794.0,42793.0,0.2277206]
[1641944845351,0.68881349,42794.0,42793.0,0.2277206]
[1641944845545,0.68881349,42794.0,42793.0,0.2282412]
[1641944845746,0.74681349,42794.0,42793.0,0.2282412]
[1641944847352,0.69681349,42794.0,42793.0,0.2282412]
[1641944847749,0.70481349,42794.0,42793.0,0.2282412]
[1641944849698,0.71181349,42794.0,42793.0,0.2282412]
[1641944850198,0.69581349,42794.0,42793.0,0.2282412]
[1641944850601,0.69581349,42794.0,42793.0,0.2277206]
[1641944850801,0.68881349,42794.0,42793.0,0.2277206]
[1641944851800,0.69581349,42794.0,42793.0,0.2277206]
[1641944853046,0.68881349,42794.0,42793.0,0.2277206]
[1641944853345,0.73881349,42794.0,42793.0,0.2277206]
[1641944853549,0.74600376,42794.0,42793.0,0.2277206]
[1641944853745,0.75200376,42794.0,42793.0,0.2277206]
[1641944854948,1.12068576,42794.0,42793.0,0.2277206]
[1641944855745,1.12768576,42794.0,42793.0,0.2277206]
[1641944855947,1.17768576,42794.0,42793.0,0.2277206]